bitfinex/quotes_ETHUSD_20250324
["timestamp","ask_amount","ask_price","bid_price","bid_amount"]
[1742802763997,4.81929,2075.0,2074.5,5.6301]
[1742802764185,4.81974,2074.8,2074.5,5.6301]
[1742802764386,4.81974,2074.8,2074.6,0.19085978]
[1742802765117,9.47066,2074.9,2074.6,0.19085978]
[1742802765811,14.29039,2074.9,2074.6,0.19085978]
[1742802766125,4.81977,2074.8,2074.6,0.19085978]
[1742802767011,4.81997,2074.7,2074.6,0.19085978]
[1742802767523,4.81997,2074.7,2074.4,0.55]
[1742802767724,4.81997,2074.7,2074.6,0.19085978]
[1742802767942,4.81997,2074.7,2074.4,5.37065]
[1742802768097,4.81997,2074.7,2074.6,0.19085978]
[1742802768298,4.81997,2074.7,2074.4,0.55]
[1742802768512,4.81997,2074.7,2074.6,0.19048613]
[1742802768719,4.81997,2074.7,2074.4,0.55]
[1742802768923,4.81997,2074.7,2074.6,0.19048613]
[1742802769098,4.81997,2074.7,2074.5,0.19076633]
[1742802769300,4.81997,2074.7,2074.4,0.55]
[1742802769520,4.81997,2074.7,2074.6,0.19076633]
[1742802769717,0.8268,2074.6,2074.2,0.96233965]
[1742802770026,0.8268,2074.6,2074.2,5.78345965]
[1742802770027,4.82044,2074.5,2074.2,5.78345965]
[1742802770192,0.8268,2074.4,2074.0,4.82142]
[1742802770389,0.8268,2074.4,2074.1,4.82128]
[1742802770591,9.47148,2074.5,2074.1,4.82118]
[1742802770843,9.47148,2074.5,2074.1,5.921426]
[1742802771621,9.47148,2074.5,2074.0,5.63128]
[1742802771832,4.8208,2074.4,2074.1,0.55]
[1742802771996,4.8208,2074.4,2074.1,5.37135]
[1742802772325,0.8018,2074.8,2074.3,0.55]
[1742802772496,4.652,2074.9,2074.5,4.82022]
[1742802772825,4.652,2074.9,2074.6,4.82017]
[1742802773029,9.47159,2074.9,2074.5,5.61652]
[1742802773708,9.47159,2074.9,2074.5,10.43681]
[1742802774229,9.47159,2074.9,2074.5,5.61652]
[1742802775125,14.2913,2074.9,2074.5,4.82022]
[1742802775335,9.47163,2074.9,2074.5,4.82022]
[1742802775630,9.47156,2074.9,2074.5,4.82022]
[1742802775827,14.29128,2074.9,2074.5,4.82022]
[1742802776020,9.47156,2074.9,2074.5,4.82022]
[1742802776331,4.81981,2074.8,2074.5,0.55]
[1742802776931,9.63977,2074.8,2074.4,4.82049]
[1742802777131,0.8018,2074.7,2074.4,4.82049]
[1742802778229,5.62178,2074.7,2074.4,4.82049]
[1742802779260,5.62178,2074.7,2074.3,5.37085]
[1742802779460,5.62178,2074.7,2074.3,6.54251347]
[1742802780160,4.82021,2074.6,2074.3,6.54251347]
[1742802780456,4.82021,2074.6,2074.3,5.37085]
[1742802780630,10.44187,2074.7,2074.3,5.37085]
[1742802781538,4.82022,2074.6,2074.4,0.19218382]
[1742802782046,5.62178,2074.7,2074.4,0.19218382]
[1742802782421,4.82026,2074.6,2074.4,0.19218382]
[1742802783030,4.86863298,2074.6,2074.4,0.19218382]
[1742802783223,4.82043,2074.5,2074.4,0.19218382]
[1742802783425,4.82043,2074.5,2074.2,0.97467468]
[1742802783661,4.82043,2074.5,2074.3,0.19218382]
[1742802783846,4.82043,2074.5,2074.2,0.97467468]
[1742802784048,4.82043,2074.5,2074.3,0.19218382]
[1742802784252,4.82043,2074.5,2074.2,0.97467468]
[1742802784425,4.82043,2074.5,2074.3,0.19218382]
[1742802784619,4.82043,2074.5,2074.1,9.6425]
[1742802784820,4.82043,2074.5,2074.2,5.37112]
[1742802785125,4.82043,2074.5,2074.2,5.56330382]
[1742802786017,0.8018,2074.4,2074.2,5.56330382]
[1742802787020,0.8018,2074.4,2074.2,0.74218382]
[1742802788451,5.62248,2074.4,2074.2,0.19218382]
[1742802789348,4.8209,2074.3,2074.2,0.19218382]
[1742802789717,9.64202,2074.3,2073.9,0.55]
[1742802789922,9.64202,2074.3,2074.2,0.19322776]
[1742802790154,9.64202,2074.3,2073.9,0.55]
[1742802790362,9.64202,2074.3,2074.2,0.19322776]
[1742802790648,11.7844771,2074.3,2074.2,0.19383516]
[1742802790954,11.7844771,2074.3,2073.9,5.37182]
[1742802791116,9.64201,2074.3,2074.2,0.19383516]
[1742802791322,4.82118,2074.2,2073.9,0.55]
[1742802792028,4.86932298,2074.3,2073.9,5.37182]
[1742802792353,10.44333,2074.4,2074.0,4.82157]
[1742802792536,5.62248,2074.4,2074.0,4.82157]
[1742802793325,10.44333,2074.4,2074.0,4.82157]
[1742802793528,4.82093,2074.3,2074.0,4.82157]
[1742802793740,4.82093,2074.3,2074.0,4.72207]
[1742802795064,4.82093,2074.3,2073.9,5.37167]
[1742802796263,4.82093,2074.3,2073.9,10.19335]
[1742802796425,4.82093,2074.3,2074.0,4.82158]
[1742802796631,4.82093,2074.3,2074.0,5.0011209]
[1742802796864,0.7584,2074.6,2074.1,1.3195]
[1742802797164,13.23069,2074.6,2074.2,4.82093]
[1742802797332,3.0,2074.6,2074.3,5.3709]
[1742802797927,4.82009,2074.7,2074.4,0.17996078]
[1742802798159,9.47209,2074.7,2074.4,0.17996078]
[1742802798462,4.82021,2074.6,2074.4,0.17996078]
[1742802798765,9.47209,2074.7,2074.4,0.17996078]
[1742802799637,4.82009,2074.7,2074.4,0.17996078]
[1742802799840,9.47209,2074.7,2074.4,0.17996078]
[1742802800039,9.47209,2074.7,2074.4,0.94946078]
[1742802800630,9.47209,2074.7,2074.4,5.77012078]
[1742802800846,9.47209,2074.7,2074.4,0.94946078]
[1742802802762,4.82031,2074.6,2074.4,0.17996078]
[1742802802976,4.82031,2074.6,2074.2,4.82112]
[1742802803142,4.82031,2074.6,2074.5,0.17935436]
[1742802803331,4.82248,2073.7,2073.1,0.7864]
[1742802803532,5.4652,2073.8,2073.4,4.82286]
[1742802803756,4.651,2073.9,2073.5,1.268686]
[1742802803944,4.651,2073.9,2073.5,6.091356]
[1742802803945,9.47294,2073.9,2073.5,6.091356]
[1742802804150,4.82208,2073.8,2073.5,1.268686]
[1742802804349,4.82208,2073.8,2073.4,4.82298]
[1742802804665,4.82208,2073.8,2073.4,9.64574]
[1742802804831,4.82208,2073.8,2073.5,0.55]
[1742802805232,4.82208,2073.8,2073.4,4.82285]
[1742802805446,4.82208,2073.8,2073.4,4.8229]
[1742802805642,4.82208,2073.8,2073.5,0.55]
[1742802806060,5.4652,2073.9,2073.5,5.37256]
[1742802806235,10.28713,2073.9,2073.5,5.37264]
[1742802806435,4.82209,2073.8,2073.5,0.55]
[1742802806943,4.82209,2073.8,2073.4,4.82284]
[1742802807145,4.82187,2073.9,2073.5,6.15905]
[1742802807544,4.82197,2073.9,2073.6,0.55]
[1742802807745,9.64452,2073.8,2073.5,0.55]
[1742802807944,4.82225,2073.8,2073.5,0.55]
[1742802808734,9.64451,2073.8,2073.5,0.55]
[1742802808935,4.82223,2073.8,2073.5,0.55]
[1742802809130,4.82238,2073.7,2073.5,0.55]
[1742802809338,5.63651,2073.7,2073.2,5.6097]
[1742802809538,4.82231,2073.7,2073.4,0.55]
[1742802810472,4.82249,2073.7,2073.4,0.55]
[1742802810664,4.82259,2073.6,2073.3,0.55]
[1742802810848,4.82247,2073.7,2073.3,5.37321]
[1742802811047,9.64488,2073.7,2073.3,5.37321]
[1742802811261,4.82241,2073.7,2073.3,5.37321]
[1742802811657,4.82241,2073.7,2073.4,0.15347274]
[1742802812047,4.8227,2073.6,2073.4,0.15347274]
[1742802812863,4.82241,2073.7,2073.4,0.15347274]
[1742802813068,4.82241,2073.7,2073.5,0.7864]
[1742802813464,9.6449,2073.7,2073.3,1.3364]
[1742802813669,4.82258,2073.6,2073.3,1.3364]
[1742802813865,4.82281,2073.5,2073.1,1.75573403]
[1742802814171,5.4662,2073.6,2073.1,0.96933403]
[1742802814382,4.82335,2073.3,2073.2,0.15347274]
[1742802814548,4.82335,2073.3,2073.2,0.70347274]
[1742802814748,4.82305,2073.4,2073.2,0.70347274]
[1742802814940,9.64623,2073.4,2073.2,0.70347274]
[1742802815153,4.82305,2073.4,2073.2,0.70347274]
[1742802815967,4.82322,2073.3,2073.2,0.70347274]
[1742802816667,4.82322,2073.3,2073.2,0.15347274]
[1742802816871,4.82305,2073.4,2073.2,0.15347274]
[1742802817583,5.59092,2073.3,2073.2,0.15347274]
[1742802817872,4.653,2073.5,2073.3,0.8019]
[1742802818052,4.653,2073.5,2073.4,0.1592979]
[1742802818253,4.82261,2073.6,2073.4,0.1592979]
[1742802818453,4.82261,2073.6,2073.4,0.7092979]
[1742802818879,10.24304,2073.7,2073.4,0.7092979]
[1742802819175,4.82262,2073.6,2073.4,0.7092979]
[1742802819673,10.981852,2073.7,2073.4,0.7092979]
[1742802819853,0.7677,2073.6,2073.4,0.7092979]
[1742802820053,0.7677,2073.6,2073.5,0.1592979]
[1742802820275,3.0,2073.7,2073.5,0.1592979]
[1742802820754,10.24277,2073.8,2073.5,0.1592979]
[1742802821449,11.749231,2073.8,2073.5,0.1592979]
[1742802821648,4.82184,2073.9,2073.5,0.1592979]
[1742802821649,4.82185,2073.9,2073.5,4.9820379]
[1742802821850,9.47485,2073.9,2073.5,4.9820379]
[1742802822550,14.29688,2073.9,2073.5,4.9820379]
[1742802823985,4.653,2073.9,2073.6,5.3725]
[1742802824159,4.653,2073.9,2073.6,5.53198432]
[1742802824781,3.0,2074.1,2073.8,4.82197]
[1742802824956,5.4207,2074.4,2073.8,5.37206]
[1742802825151,3.0,2074.3,2074.0,4.82149]
[1742802825657,3.0,2074.3,2074.1,0.15743306]
[1742802826195,4.82034,2074.6,2074.1,4.97870306]
[1742802826196,9.47346,2074.5,2074.1,4.97870306]
[1742802826396,9.47346,2074.5,2074.2,0.55]
[1742802826703,9.47357,2074.5,2074.2,0.55]
[1742802826996,9.47357,2074.5,2074.3,0.15743306]
[1742802827284,9.47357,2074.5,2074.4,0.15743306]
[1742802827591,12.47357,2074.5,2074.2,0.55]
[1742802827770,7.82057,2074.5,2074.4,0.15743306]
[1742802827977,12.47357,2074.5,2074.2,0.55]
[1742802828280,12.47357,2074.5,2074.4,0.15743306]
[1742802828785,12.47357,2074.5,2074.2,0.55]
[1742802829384,12.47357,2074.5,2074.3,0.15743306]
[1742802829686,12.47357,2074.5,2074.2,0.55]
[1742802829890,12.47357,2074.5,2074.3,0.15743306]
[1742802830050,12.47257,2074.5,2074.2,0.55]
[1742802830255,12.47257,2074.5,2074.3,0.15743306]
[1742802830461,4.82067,2074.4,2074.3,0.15743306]
[1742802830684,4.82067,2074.4,2074.1,0.55]
[1742802830891,4.82067,2074.4,2074.3,0.15743306]
[1742802831052,4.82091,2074.3,2074.0,0.55]
[1742802831254,4.82114,2074.2,2074.0,0.55]
[1742802831455,1.7367423,2074.2,2073.8,0.55]
[1742802831651,4.82143,2074.1,2073.8,0.55]
[1742802832495,6.5579023,2074.2,2073.8,0.55]
[1742802832700,6.5579023,2074.2,2073.8,5.37204]
[1742802834966,5.58886,2074.2,2073.8,10.19393]
[1742802835896,5.58886,2074.2,2073.8,5.37189]
[1742802837093,7.82096,2074.3,2073.9,4.8218]
[1742802837695,12.642,2074.3,2073.9,4.8218]
[1742802838097,4.82138,2074.1,2073.8,4.82189]
[1742802838298,6.88776,2074.2,2073.9,0.55]
[1742802840591,4.82143,2074.1,2073.9,0.55]
[1742802841604,4.82143,2074.1,2074.0,0.15445024]
[1742802841772,13.27573,2074.1,2074.0,0.15445024]
[1742802841968,15.693941,2074.1,2074.0,0.15445024]
[1742802842174,4.82181,2074.0,2073.6,0.55]
[1742802842369,4.82193,2073.9,2073.6,0.55]
[1742802842584,4.82206,2073.8,2073.6,0.55]
[1742802842782,4.82369,2073.1,2073.0,0.96312573]
[1742802842982,7.82386,2073.1,2072.5,0.8046]
[1742802843205,7.82386,2073.1,2072.6,4.82462]
[1742802843395,4.82392,2073.0,2072.7,0.55]
[1742802843572,4.82392,2073.0,2072.6,4.82462]
[1742802843769,7.82376,2073.1,2072.7,0.55]
[1742802844008,7.82376,2073.1,2072.6,5.96449067]
[1742802844207,9.64802,2073.0,2072.5,5.62964]
[1742802844385,9.64802,2073.0,2072.6,4.82479]
[1742802844882,4.82417,2072.9,2072.5,10.45449]
[1742802845082,9.64853,2072.9,2072.5,5.62952]
[1742802845301,4.82417,2072.9,2072.5,1.71964952]
[1742802845501,3.0,2073.1,2072.8,4.8243]
[1742802845802,6.61936593,2073.7,2073.1,0.55]
[1742802845989,4.82261,2073.6,2073.3,0.55]
[1742802846193,4.676,2073.7,2073.1,5.37367]
[1742802846194,4.82276,2073.5,2073.1,5.37367]
[1742802848271,4.82276,2073.5,2073.1,5.37368]
[1742802848474,7.82257,2073.6,2073.3,0.55]
[1742802848706,4.8228,2073.5,2073.2,0.55]
[1742802848902,4.8228,2073.5,2073.2,1.650187]
[1742802849071,7.82261,2073.6,2073.2,1.650187]
[1742802849274,7.82261,2073.6,2073.0,5.6283]
[1742802849275,4.82288,2073.5,2073.1,5.37358]
[1742802849706,4.67,2073.7,2073.3,0.55]
[1742802849907,9.49236,2073.7,2073.4,0.8084]
[1742802850309,4.82207,2073.8,2073.4,5.63138]
[1742802850787,7.82207,2073.8,2073.5,0.55]
[1742802853314,4.82232,2073.7,2073.5,0.55]
[1742802853615,9.64482,2073.7,2073.5,0.55]
[1742802853781,4.82229,2073.7,2073.5,0.55]
[1742802856624,4.82229,2073.7,2073.6,0.10961514]
[1742802865620,7.82207,2073.8,2073.7,0.55]
[1742802865918,0.7941,2074.0,2073.7,0.55]
[1742802865919,3.0,2074.0,2073.7,6.18975]
[1742802866220,3.0,2074.0,2073.7,7.41383651]
[1742802867617,7.8216,2074.0,2073.7,7.41383651]
[1742802867916,4.82101,2074.3,2074.1,0.55]
[1742802868099,3.0,2074.2,2074.1,0.55]
[1742802868295,4.653,2074.4,2074.3,0.55]
[1742802868486,9.47367,2074.4,2074.1,0.55]
[1742802868691,3.0,2074.3,2074.1,5.37135]
[1742802869295,3.0,2074.3,2074.1,0.55]
[1742802870229,4.81977,2074.8,2074.3,4.8209]
[1742802870432,0.35742747,2074.9,2074.8,1.3676]
[1742802870926,3.0,2075.1,2074.8,6.18734]
[1742802871634,3.0,2075.2,2075.0,0.55]
[1742802872203,3.0,2075.2,2075.1,0.65686897]
[1742802872631,7.81881,2075.2,2075.1,0.65686897]
[1742802874238,10.03368098,2075.2,2075.1,0.10686897]
[1742802874529,5.64634,2074.7,2074.3,0.55]
[1742802874728,0.8263,2074.7,2074.3,5.37079]
[1742802875027,0.8263,2074.7,2074.4,0.09849648]
[1742802875247,5.64635,2074.7,2074.4,0.09849648]
[1742802875826,8.64673,2074.5,2074.4,0.09849648]
[1742802876127,4.82216,2073.8,2073.4,5.63526]
[1742802876296,4.82261,2073.6,2073.2,5.6357]
[1742802876498,4.82261,2073.6,2073.5,0.64849648]
[1742802877045,4.82261,2073.6,2073.5,0.09849648]
[1742802877247,4.82261,2073.6,2073.2,5.6357]
[1742802877424,7.82233,2073.7,2073.3,4.92165648]
[1742802878059,7.82233,2073.7,2073.4,0.55]
[1742802878219,3.0,2073.7,2073.4,0.55]
[1742802878421,7.82237,2073.7,2073.5,0.09849648]
[1742802879648,12.64487,2073.7,2073.5,0.09849648]
[1742802880250,7.82237,2073.7,2073.5,0.09849648]
[1742802882319,12.64487,2073.7,2073.5,0.09849648]
[1742802882918,7.82237,2073.7,2073.5,0.09849648]
[1742802884454,12.64488,2073.7,2073.5,0.09849648]
[1742802884952,7.82237,2073.7,2073.5,0.09849648]
[1742802886053,12.64485,2073.7,2073.5,0.09849648]
[1742802886746,4.82253,2073.6,2073.5,0.09849648]
[1742802888462,7.82237,2073.7,2073.6,0.55]
[1742802888759,7.82237,2073.7,2073.6,0.65519623]
[1742802889927,10.04658453,2073.7,2073.6,0.10519623]
[1742802890323,4.82306,2073.4,2073.0,5.62019]
[1742802890539,4.82306,2073.4,2073.1,0.55]
[1742802890941,9.64625,2073.4,2073.1,0.55]
[1742802891145,4.82306,2073.4,2073.1,0.55]
[1742802891930,4.82306,2073.4,2073.1,1.649393]
[1742802893434,4.82306,2073.4,2073.1,0.55]
[1742802898038,4.664,2073.5,2073.0,0.7963]
[1742802898368,4.8234,2073.3,2073.0,0.7963]
[1742802898539,4.823,2073.4,2073.1,0.55]
[1742802898739,9.48676,2073.5,2073.1,0.55]
[1742802898939,9.48676,2073.5,2073.1,5.37364]
[1742802899239,14.30969,2073.5,2073.1,5.37364]
[1742802899672,9.48676,2073.5,2073.1,5.37364]
[1742802899970,9.48676,2073.5,2073.1,11.296557]
[1742802900261,3.0,2073.5,2073.3,0.55]
[1742802900837,3.0,2073.6,2073.5,0.55]
[1742802901273,7.82253,2073.6,2073.5,0.55]
[1742802901466,7.82253,2073.6,2073.5,0.66357219]
[1742802902339,9.55389,2073.6,2073.5,0.66357219]
[1742802902740,14.37664,2073.6,2073.3,0.55]
[1742802903090,9.55389,2073.6,2073.5,0.55]
[1742802903469,3.0,2073.6,2073.5,0.11357219]
[1742802903645,12.48726,2073.8,2073.3,5.37318]
[1742802903844,12.48726,2073.8,2073.4,4.93653219]
[1742802904463,4.8223,2073.7,2073.4,0.11357219]
[1742802904650,9.64481,2073.7,2073.4,0.11357219]
[1742802904968,4.8223,2073.7,2073.4,0.11357219]
[1742802905481,9.6447,2073.7,2073.4,0.11357219]
[1742802906269,9.64477,2073.7,2073.4,0.11357219]
[1742802906571,12.48507,2073.8,2073.4,0.11357219]
[1742802906986,17.30729,2073.8,2073.4,0.11357219]
[1742802908477,4.82232,2073.7,2073.4,0.11357219]
[1742802908976,4.8223,2073.7,2073.4,0.11357219]
[1742802909187,12.47907,2073.8,2073.4,4.93651219]
[1742802909356,17.30133,2073.8,2073.6,0.55]
[1742802909754,17.30133,2073.8,2073.7,0.66259444]
[1742802910081,12.47907,2073.8,2073.7,0.66259444]
[1742802911585,7.82207,2073.8,2073.7,0.66259444]
[1742802912899,5.63388,2074.1,2073.8,0.55]
[1742802913056,7.654,2074.1,2073.8,0.55]
[1742802913257,9.47553,2074.1,2073.8,0.55]
[1742802913450,4.82116,2074.2,2073.8,5.37197]
[1742802913783,12.47538,2074.1,2074.0,0.55]
[1742802914350,12.47538,2074.1,2074.0,0.66096491]
[1742802915083,3.0,2074.1,2074.0,0.66096491]
[1742802915276,4.82116,2074.2,2074.0,0.66096491]
[1742802917159,4.82136,2074.1,2074.0,0.66096491]
[1742802924104,3.7565,2073.5,2072.9,4.8241]
[1742802924263,3.0,2073.5,2073.3,4.82307]
[1742802924469,3.0,2073.5,2073.2,4.82341]
[1742802924692,3.0,2073.5,2073.2,0.55]
[1742802924888,4.82335,2073.3,2073.0,0.8098]
[1742802925205,4.82393,2073.0,2072.7,0.8098]
[1742802925501,4.8243,2072.9,2072.5,0.8098]
[1742802925803,9.64864,2072.9,2072.5,0.8098]
[1742802926096,9.64864,2072.9,2072.6,1.113495]
[1742802926097,4.8244,2072.8,2072.6,1.113495]
[1742802926279,4.8244,2072.8,2072.6,0.563495]
[1742802926280,9.649,2072.8,2072.6,0.563495]
[1742802926480,9.649,2072.8,2072.5,0.8098]
[1742802926683,4.82464,2072.7,2072.5,0.8098]
[1742802927072,4.82464,2072.7,2072.4,0.55]
[1742802927273,4.8244,2072.8,2072.4,0.55]
[1742802927469,3.7565,2072.9,2072.3,0.8098]
[1742802927707,4.82467,2072.7,2072.3,0.8098]
[1742802927884,4.82504,2072.6,2072.4,0.55]
[1742802928274,4.82504,2072.6,2072.3,0.8098]
[1742802928275,4.8251,2072.5,2072.3,0.8098]
[1742802928594,4.8251,2072.5,2072.4,0.55]
[1742802928797,4.8249,2072.6,2072.4,0.55]
[1742802930405,9.64987,2072.6,2072.4,0.55]
[1742802930602,4.8249,2072.6,2072.4,0.55]
[1742802930771,4.82509,2072.5,2072.4,0.55]
[1742802931572,4.82551,2072.4,2072.2,0.55]
[1742802931792,4.82555,2072.3,2072.2,0.55]
[1742802931987,4.82605,2072.1,2071.8,0.1207868]
[1742802932686,9.652,2072.2,2071.8,0.1207868]
[1742802932887,4.826,2072.2,2071.8,0.1207868]
[1742802933286,3.7565,2072.3,2071.8,0.1207868]
[1742802933287,4.82648,2071.9,2071.8,0.1207868]
[1742802934412,4.82648,2071.9,2071.8,0.6707868]
[1742802934610,7.82625,2072.0,2071.9,0.55]
[1742802935495,3.0,2072.0,2071.8,0.1207868]
[1742802935697,7.705,2072.2,2071.8,6.06086148]
[1742802935875,7.705,2072.2,2071.8,6.06084148]
[1742802936419,4.82602,2072.1,2071.8,1.23425148]
[1742802936602,17.35682,2072.2,2071.8,6.06087148]
[1742802936808,4.82614,2072.1,2071.8,0.1207868]
[1742802938282,3.0,2072.2,2071.8,4.9474468]
[1742802938481,7.82583,2072.2,2071.8,4.9474468]
[1742802940323,7.82583,2072.2,2071.8,9.7739968]
[1742802940540,7.82583,2072.2,2071.8,4.9473368]
[1742802941840,7.82583,2072.2,2071.8,9.7739568]
[1742802942334,7.82583,2072.2,2071.8,4.9473368]
[1742802942622,9.560339,2072.2,2071.8,0.1207868]
[1742802942824,4.82648,2071.9,2071.8,0.1207868]
[1742802943136,7.82648,2071.9,2071.8,0.1207868]
[1742802943586,3.0,2071.9,2071.8,4.9475068]
[1742802943788,3.0,2071.9,2071.8,6.2838068]
[1742802944019,3.0,2071.9,2071.8,7.87759848]
[1742802944818,3.0,2071.9,2071.8,6.2838068]
[1742802947525,3.0,2071.9,2071.8,1.4570868]
[1742802948949,3.0,2071.9,2071.8,0.6707868]
[1742802950428,7.82648,2071.9,2071.8,0.6707868]
[1742802951022,7.82648,2071.9,2071.8,0.1207868]
[1742802954268,7.82648,2071.9,2071.8,0.6707868]
[1742802955369,9.560262,2071.9,2071.8,0.6707868]
[1742802955542,10.371162,2071.9,2071.8,0.1207868]
[1742802956339,10.72530025,2071.9,2071.8,0.1207868]
[1742802957266,0.8109,2071.6,2070.7,0.7857]
[1742802957475,3.0,2071.8,2071.4,4.82752]
[1742802957476,3.8109,2071.8,2071.4,4.82752]
[1742802957632,4.724,2071.7,2071.5,0.561322]
[1742802957969,26.686,2072.0,2071.5,0.561322]
[1742802957970,4.82638,2072.0,2071.7,0.55]
[1742802958127,4.82654,2071.9,2071.7,0.55]
[1742802958331,4.82672,2071.8,2071.7,0.55]
[1742802958531,4.82654,2071.9,2071.7,0.55]
[1742802959067,4.82672,2071.8,2071.7,0.55]
[1742802959371,4.82672,2071.8,2071.4,6.16333]
[1742802959657,4.82672,2071.8,2071.4,3.391018]
[1742802959865,4.82703,2071.7,2071.4,3.391018]
[1742802961039,7.82675,2071.8,2071.4,3.391018]
[1742802961354,3.0,2071.8,2071.1,4.82835]
[1742802961566,7.727,2071.9,2071.5,4.82719]
[1742802961749,7.727,2071.9,2071.6,4.82716]
[1742802962141,3.0,2072.2,2071.7,4.82694]
[1742802962330,12.5558,2072.2,2071.7,4.82694]
[1742802962532,12.65177,2072.2,2071.7,4.82694]
[1742802962737,17.38077,2072.2,2071.7,4.82694]
[1742802962964,4.82602,2072.1,2071.7,4.79694]
[1742802963186,4.82602,2072.1,2071.7,5.759357]
[1742802963364,4.82602,2072.1,2071.8,0.55]
[1742802965768,7.721,2072.2,2071.5,0.7857]
[1742802966064,4.82676,2071.8,2071.5,0.7857]
[1742802967535,4.82626,2072.0,2071.5,0.7857]
[1742802967536,3.0,2071.9,2071.5,0.7857]
[1742802967848,3.0,2071.9,2071.5,5.6131]
[1742802968046,7.82649,2071.9,2071.5,0.7857]
[1742802970936,4.82678,2071.8,2071.5,0.7857]
[1742802972059,17.37211,2071.9,2071.5,0.7857]
[1742802972259,12.54549,2071.9,2071.5,0.7857]
[1742802972564,12.54549,2071.9,2071.5,5.61311]
[1742802972934,12.54049,2071.9,2071.5,0.7857]
[1742802973367,14.354854,2071.9,2071.5,0.7857]
[1742802974245,19.181554,2071.9,2071.5,0.7857]
[1742802974445,4.82677,2071.8,2071.5,0.7857]
[1742802975685,14.350854,2071.9,2071.5,0.7857]
[1742802975860,19.177524,2071.9,2071.5,0.7857]
[1742802976368,4.82676,2071.8,2071.5,0.7857]
[1742802976736,14.350854,2071.9,2071.5,0.7857]
[1742802976934,7.71,2071.9,2071.5,5.61299]
[1742802977165,7.71,2071.9,2071.6,0.55]
[1742802977355,7.71,2071.9,2071.6,5.37709]
[1742802977561,3.0,2071.9,2071.6,0.55]
[1742802979271,7.8265,2071.9,2071.6,0.55]
[1742802980044,3.0,2071.9,2071.6,0.55]
[1742802981075,3.0,2071.9,2071.6,5.37704]
[1742802981371,3.0,2071.9,2071.6,0.55]
[1742802983973,7.82649,2071.9,2071.6,0.55]
[1742802984278,3.0,2071.9,2071.6,0.55]
[1742802985071,7.82651,2071.9,2071.6,0.55]
[1742802985879,3.0,2071.9,2071.6,5.37716]
[1742802986085,3.0,2071.9,2071.6,0.55]
[1742802986950,7.82651,2071.9,2071.6,0.55]
[1742802988350,3.0,2071.9,2071.6,5.37716]
[1742802988785,3.0,2071.9,2071.6,0.55]
[1742802991679,3.0,2071.9,2071.6,5.37716]
[1742802991980,3.0,2071.9,2071.6,0.55]
[1742802992181,9.65179,2072.2,2071.8,0.55]
[1742802992387,12.49605,2072.1,2071.8,0.55]
[1742802993457,7.82605,2072.1,2071.8,0.55]
[1742802994889,0.8117,2072.5,2071.6,0.616312]
[1742802995075,26.689,2073.5,2071.9,6.18708]
[1742802995076,0.05,2072.0,2071.9,6.18708]
[1742802995577,0.8117,2073.2,2072.8,4.82439]
[1742802995889,3.0,2073.2,2072.7,0.8106]
[1742802996082,3.0,2072.9,2072.7,0.8106]
[1742802996692,4.681,2073.2,2072.8,5.37425]
[1742802996992,9.50678,2073.5,2073.1,0.55]
[1742802997381,4.82324,2073.3,2073.1,0.55]
[1742802997786,7.82304,2073.4,2073.1,0.55]
[1742802999065,3.0,2073.4,2073.1,0.55]
[1742803001788,3.0,2073.4,2072.7,1.70532316]
[1742803001789,0.04837298,2073.3,2072.7,1.70532316]
[1742803001976,0.04837298,2073.3,2072.5,4.82505]
[1742803001977,5.60241,2073.0,2072.5,4.82505]
[1742803002294,3.0,2072.9,2072.6,4.82484]
[1742803002590,4.682,2073.0,2072.9,6.12415]
[1742803002762,3.0,2073.2,2073.0,0.55]
[1742803003895,3.0,2073.3,2073.0,0.55]
[1742803004195,3.0,2073.3,2073.0,5.37389]
[1742803004988,7.683,2073.4,2073.0,5.37382]
[1742803005163,3.0,2073.4,2073.0,6.468628]
[1742803007491,3.0,2073.4,2073.0,6.468628]
[1742803008469,3.0,2073.4,2073.0,11.292428]
[1742803008670,3.0,2073.4,2073.2,0.55]
[1742803008865,4.674,2073.5,2073.3,0.75]
[1742803009071,4.674,2073.5,2073.2,0.55]
[1742803009271,3.0,2073.5,2073.2,0.55]
[1742803009681,7.82278,2073.5,2073.0,1.094808]
[1742803009866,7.82278,2073.5,2073.0,0.55]
[1742803009867,4.82313,2073.4,2073.0,0.55]
[1742803010072,0.7783,2073.2,2072.7,0.75]
[1742803010309,4.8238,2073.1,2072.7,0.75]
[1742803010484,3.0,2073.0,2072.8,0.55]
[1742803010684,7.82399,2073.0,2072.8,0.55]
[1742803011086,7.87236298,2073.0,2072.5,5.57497]
[1742803011283,4.82416,2072.9,2072.5,5.57497]
[1742803011615,7.82401,2073.0,2072.6,0.55]
[1742803011815,4.82441,2072.8,2072.2,5.65749]
[1742803012121,4.82471,2072.7,2072.3,0.55]
[1742803012427,4.82471,2072.7,2072.2,10.48317]
[1742803012574,4.82441,2072.8,2072.3,4.82554]
[1742803013020,3.8149,2072.9,2072.4,5.37514]
[1742803013314,3.0,2072.9,2072.6,5.65654]
[1742803013868,3.0,2072.9,2072.6,0.8319]
[1742803014612,7.82418,2072.9,2072.4,5.37531]
[1742803014781,7.82418,2072.9,2072.4,6.20721]